Cogmind - Beta 16.1 *** ADVENTURER MODE // 2026.04.01 @ 22:18:45 // Winter2019/RPGLIKE Player: Lava Result: Destroyed by 70-ZLV(R) with Subdweller Beam Cannon Performance ------------- Evolutions (0) 0 Regions Visited (2) 400 Robots Destroyed (19) 95 Value Destroyed (680) 680 Prototype IDs (0) 0 Alien Tech Used (0) 0 Bonus (0) 0 TOTAL SCORE: 1175 Bonus ------- None Cogmind --------- Core Integrity 0/600 Matter 285/300 Energy 125/125 System Corruption 0% Temperature Cool (9) Movement Treading (160) Location -10/Subcaves Parts ------- > --- POWER (1) -------- Light Ion Engine > --- PROPULSION (2) --- Light Treads Light Treads > --- UTILITY (2) ------ Signal Interpreter > --- WEAPON (2) ------- Light Assault Rifle Barrage Gun > --- INVENTORY (3) ---- Rocket Launcher Makeshift Hammer Peak State ------------ > --- POWER ------------ Light Ion Engine > --- PROPULSION ------- Light Treads Light Treads > --- UTILITY ---------- Signal Interpreter > --- WEAPON ----------- Barrage Gun Makeshift Hammer > --- INVENTORY -------- Light Assault Rifle Rocket Launcher [Rating: 11] Favorites ----------- Power Light Ion Engine Engine Light Ion Engine Propulsion Light Treads Treads Light Treads Utility Propulsion Shielding Processor Signal Interpreter Protection Propulsion Shielding Weapon Light Assault Rifle Ballistic Gun Light Assault Rifle Impact Weapon Makeshift Hammer Slashing Weapon Mining Claw Build | -11 -10 -10 ------- Run | Yrd Mat Sub Slots Evolved 3 | 3 . . Power . | . . . Propulsion 1 | 1 . . Utility 1 | 1 . . Weapon 1 | 1 . . Parts Attached 11 | 5 4 2 Power 1 | 1 . . Engine 1 | 1 . . Core . | . . . Reactor . | . . . Propulsion 2 | 2 . . Treads 2 | 2 . . Leg . | . . . Wheel . | . . . Hover . | . . . Flight . | . . . Utility 3 | . 3 . Device . | . . . Storage . | . . . Processor 2 | . 2 . Hackware . | . . . Protection 1 | . 1 . Artifact . | . . . Weapon 5 | 2 1 2 Energy Gun . | . . . Energy Cannon . | . . . Ballistic Gun 3 | 2 . 1 Ballistic Cannon . | . . . Launcher . | . . . Special Weapon . | . . . Impact Weapon 1 | . . 1 Slashing Weapon 1 | . 1 . Piercing Weapon . | . . . Special Melee Weapon . | . . . Unidentified Prototypes . | . . . Parts Lost 1 | . . 1 Power . | . . . Propulsion . | . . . Utility 1 | . . 1 Weapon . | . . . Highest Loss Streak 1 | . . 1 To Critical Strikes . | . . . Average Backups 1 | . 1 2 Power . | . . . Propulsion . | . . . Utility . | . . . Weapon 1 | . 1 2 Tool/Special . | . . . Unused Backups 2 | . 1 1 Power . | . . . Propulsion . | . . . Utility . | . . . Weapon 2 | . 1 1 Tool/Special . | . . . Average Slot Usage (%) 95 | . 93 96 Engine 14 | . 14 14 Treads 28 | . 28 28 Processor 11 | . 9 14 Protection 11 | . 12 10 Ballistic Gun 23 | . 25 21 Slashing Weapon 3 | . 2 4 Peak Build Rating 11 | 5 8 11 Average Rating 7 | 3 7 7 On Entrance 4 | . 5 7 Avg Prop Armor Cover (%) . | . . . Naked Turns . | . . . Heaviest Build 9 | 5 7 9 Greatest Support 40 | 40 40 40 Greatest Overweight (x) . | . . . Average Overweight (x) . | . . . Largest Inventory Capacity 3 | 3 3 3 Average Capacity 2 | 1 3 3 Most Carried 3 | 2 3 3 Average Carried 2 | . 2 2 Final Capacity 3 | 3 3 3 Final Carried 3 | . 3 2 Class Distribution -------------------- 100% | Mutant Dominant Class ---------------- Mutant | -10/Materials Mutant | -10/Subcaves Resources | -11 -10 -10 ----------- Run | Yrd Mat Sub Matter Collected 646 | 250 140 256 Remotely . | . . . Salvage Created 567 | . 305 262 Parts 40 | 3 18 19 Haulers Intercepted . | . . . Recyclers Shooed . | . . . Parts Field Recycled . | . . . Retrieved Matter . | . . . Parts Self-Destructed 9 | . . 9 Prevented . | . . . Parts Restored . | . . . Kills | -11 -10 -10 ------- Run | Yrd Mat Sub Combat Hostiles Destroyed 16 | . 8 8 Guns 16 | . 8 8 Classes Destroyed 4 | 1 2 1 Tunneler 1 | 1 . . Watcher 2 | . 2 . Grunt 8 | . 8 . Subdweller 8 | . . 8 Best Kill Streak 2 | 1 2 2 Combat Bots Only 2 | . 2 2 Max Kills in Single Turn 1 | 1 1 1 Gunslinging . | . . . Exploded . | . . . Melee . | . . . Uniques/NPCs Destroyed . | . . . Combat | -11 -10 -10 -------- Run | Yrd Mat Sub Hostile Shots Fired 132 | . 49 83 Missed 40 | . 17 23 Hits 92 | . 32 60 Projectile 92 | . 32 60 AOE 4 | . . 4 Critical Strikes 2 | . 1 1 Actively Blocked 1 | . 1 . Damage Taken 1724 | . 320 1404 Core 1283 | . 237 1046 Absorbed by Shields . | . . . Redirected to Core 862 | . 154 708 Redirected to Shielding 178 | . 31 147 Ignored by Resistances 442 | . 97 345 Core Remaining (%) 100 | 100 . . Volleys Fired 103 | . 50 53 Largest 2 | . 2 2 Hottest 48 | . 40 48 Shots Fired 206 | . 100 106 Gun 206 | . 100 106 Cannon . | . . . Launcher . | . . . Special . | . . . Kinetic 206 | . 100 106 Thermal . | . . . Explosive . | . . . Electromagnetic . | . . . Robot Hit Streak 33 | . 33 26 Robot Miss Streak 4 | . 4 1 Penetration Max . | . . . Secondary Targets 1 | . . 1 Max Gunslinging Chain 1 | . . 1 Shots Hit Robots 178 | . 82 96 Core Hits 58 | 1 30 27 Critical Kills . | . . . Critical Parts Destroyed . | . . . Critical Strikes . | . . . Melee Attacks 11 | . 1 10 Impact 6 | . . 6 Slashing 5 | . 1 4 Piercing . | . . . Sneak Attacks . | . . . Combat Hostiles . | . . . Follow-up Attacks . | . . . Damage Inflicted 1592 | 1 640 951 Guns 1591 | . 640 951 Cannons . | . . . Explosions . | . . . Melee . | . . . Ramming 1 | 1 . . Kinetic 1591 | . 640 951 Thermal . | . . . Explosive . | . . . Electromagnetic . | . . . Impact . | . . . Slashing . | . . . Piercing . | . . . Highest Corruption . | . . . Average Corruption . | . . . Corruption Purged . | . . . Corruption Blocked . | . . . Overload Shots . | . . . Overflow Damage . | . . . Projectiles . | . . . Explosions . | . . . Melee . | . . . Knockbacks . | . . . Impact . | . . . Kinetic . | . . . Secondary . | . . . Self-Inflicted Damage . | . . . Shots . | . . . Rammed . | . . . Targets Rammed 1 | 1 . . Kicked . | . . . Crushed 1 | 1 . . Highest Temperature 169 | . 12 169 Average Temperature 16 | . 7 90 Received Heat Transfer 773 | . 240 533 Siege Activations . | . . . Martial Activations . | . . . Shielding Activations . | . . . Robots Disrupted . | . . . Combat Hostiles . | . . . Robots Corrupted . | . . . Combat Hostiles . | . . . Parts Fried . | . . . Impact Corruptions . | . . . Robots Melted . | . . . Combat Hostiles . | . . . Parts Melted . | . . . Heat Transferred . | . . . Parts Sabotaged . | . . . Parts Stolen . | . . . Parts Stripped . | . . . Power Chain Reactions . | . . . Alert | -11 -10 -10 ------- Run | Yrd Mat Sub Maximum Alert Level . | . . . Low Security (%) 100 | 100 100 . Level 1 . | . . . Level 2 . | . . . Level 3 . | . . . Level 4 . | . . . Level 5 . | . . . High Security . | . . . Max Security . | . . . Peak Influence 40 | . 40 . Initial 2 | . 2 . Average 6 | . 7 . Influence Increases 247 | 5 242 . Destroy 0b10 Robot/C 160 | . 160 . Destroy 0b10 Robot/NC 15 | 5 10 . Destroy Leader 44 | . 44 . Successful Hack 19 | . 19 . Disable Machine 9 | . 9 . Influence Decreases 247 | . 247 . Entered New Map 3 | . 3 . Time Decay 244 | . 244 . Squads Dispatched 1 | . 1 . Investigation 1 | . 1 . Extermination . | . . . Reinforcement . | . . . Assault . | . . . Garrison . | . . . Intercept . | . . . Searches Triggered . | . . . Construction Impeded . | . . . Haulers Reinforced . | . . . Active Scanning Responses . | . . . Cargo Convoy Interrupts . | . . . Stealth | -11 -10 -10 --------- Run | Yrd Mat Sub Distress Signals 1 | . 1 . Communications Jammed . | . . . Distress Signals . | . . . Times Spotted 27 | . 17 10 Peak Tracking Total 3 | . 3 2 Tactical Retreats . | . . . Traps | -11 -10 -10 ------- Run | Yrd Mat Sub Traps Triggered 4 | . 1 3 Indirectly . | . . . Trap Hack Attempts . | . . . Triggered . | . . . Disarmed 10 | . 10 . Reprogrammed . | . . . Reused . | . . . Traps Extracted . | . . . Installed . | . . . Triggered . | . . . Machines | -11 -10 -10 ---------- Run | Yrd Mat Sub Machines Disabled 1 | . 1 . Max in Single Turn 1 | . 1 . Machines Repaired . | . . . Machines Dismantled . | . . . Machines Sabotaged . | . . . Overloaded Fab Kills . | . . . Hacking | -11 -10 -10 --------- Run | Yrd Mat Sub Machines Accessed 2 | . 2 . Terminals 2 | . 2 . Fabricators . | . . . Repair Stations . | . . . Recycling Units . | . . . Scanalyzers . | . . . Garrison Access . | . . . Total Hacks 10 | . 10 . Successful 6 | . 6 . Failed 4 | . 4 . Catastrophic 1 | . 1 . Database Lockouts . | . . . Manual 5 | . 5 . Terminals 10 | . 10 . Fabricators . | . . . Repair Stations . | . . . Recycling Units . | . . . Scanalyzers . | . . . Garrison Access . | . . . Terminal Hacks 6 | . 6 . Level Access Points 1 | . 1 . Branch Access Points 1 | . 1 . Emergency Access Points 1 | . 1 . Disarm Traps 3 | . 3 . Fabricator Hacks . | . . . Repair Station Hacks . | . . . Recycling Unit Hacks . | . . . Scanalyzer . | . . . Garrison Access Hacks . | . . . Unauthorized Hacks . | . . . Terminals . | . . . Fabricators . | . . . Repair Stations . | . . . Recycling Units . | . . . Scanalyzers . | . . . Garrison Access . | . . . Data Cores Recovered . | . . . Used . | . . . Hacking Detections 2 | . 2 . Full Trace Events . | . . . Feedback Events . | . . . Feedback Blocked . | . . . Robot Schematics Acquired . | . . . Robots Built . | . . . Authchips . | . . . Time . | . . . Total Robot Build Rating . | . . . Part Schematics Acquired . | . . . Parts Built . | . . . Authchips . | . . . Time . | . . . Total Part Build Rating . | . . . Part Studies Acquired . | . . . Parts Repaired . | . . . Time . | . . . Parts Recycled . | . . . Recycled Matter . | . . . Retrieved Matter . | . . . Retrieved Components . | . . . Parts Scanalyzed . | . . . Part Schematics Acquired . | . . . Parts Damaged . | . . . Bothacking | -11 -10 -10 ------------ Run | Yrd Mat Sub Used RIF Installer . | . . . Robots Hacked . | . . . Non-combat . | . . . Combat . | . . . Robot Hacks Applied . | . . . Relay Couplers Released . | . . . Fabnet Peak Effective % . | . . . Robots Rewired . | . . . Allies Hacked . | . . . Hacks Repelled . | . . . Allies | -11 -10 -10 -------- Run | Yrd Mat Sub Total Allies . | . . . Largest Group . | . . . Highest-Rated Group . | . . . Highest-Rated Ally . | . . . Total Orders . | . . . Ally Attacks . | . . . Total Damage . | . . . Kills . | . . . Allies Corrupted . | . . . Allies Melted . | . . . Intel | -11 -10 -10 ------- Run | Yrd Mat Sub Active Infowar (turns) 615 | . 615 . Optics 615 | . 615 . Robot Analysis Total . | . . . Derelict Logs Recovered . | . . . Drone Launches . | . . . Drone Recoveries . | . . . Exploration | -11 -10 -10 ------------- Run | Yrd Mat Sub Turns Passed 2482 | 57 1169 1256 Spaces Moved 1210 | 32 570 608 Core 4 | 4 . . Treads 1206 | 28 570 608 Legs . | . . . Wheels . | . . . Hover . | . . . Flight . | . . . Fastest Speed 50 | 50 160 160 Average Speed 159 | 146 160 160 Slowest Speed 160 | 160 160 160 Overloaded Moves . | . . . Propulsion Burnouts . | . . . Robots Hopped . | . . . Potential Cave-ins . | . . . Cave-ins Triggered . | . . . Exploration Rate (%) 42 | 4 89 33 Regions Visited 2 Branch Regions 1 Pre-discovered Areas . | . . . Known Exits Taken 1 | . 1 . Unknown Exits Taken 1 | 1 . . Scrap Searched 2 | . . 2 Spaces Dug . | . . . Terrain Destroyed . | . . . Melee . | . . . Projectile . | . . . AOE . | . . . Terrain Rammed . | . . . Walls Destroyed . | . . . Machines Disabled . | . . . Actions | -11 -10 -10 --------- Run | Yrd Mat Sub Total 1573 | 40 747 786 Wait 160 | 1 93 66 Move 1209 | 32 569 608 Hop . | . . . Pick Up 14 | 2 8 4 Fast Attach 5 | 3 2 . Attach 3 | 2 1 . Detach . | . . . Swap 9 | . 1 8 Drop 11 | . 5 6 Fire 103 | . 50 53 Melee 11 | . 1 10 Ram . | . . . Kick . | . . . Crush . | . . . Escape Stasis . | . . . Rewire . | . . . Trap . | . . . Miscellaneous 48 | . 17 31 Route ------- -11/Scrapyard -10/Materials (discovered 6 exits: *Mat x3 / *Min x2 / *Sub) -10/Subcaves History --------- Turn | Location | Event 8 | -11/Scrapyard | Discovered new exit (range 16) 22 | -11/Scrapyard | Upgraded with Propulsion slot (x1) 22 | -11/Scrapyard | Upgraded with Utility slot (x1) 22 | -11/Scrapyard | Upgraded with Weapon slot (x1) 58 | -11/Scrapyard | Entered Materials 308 | -10/Materials | Build established: Mutant 340 | -10/Materials | Discovered new exit (range 15) 396 | -10/Materials | Identified exit to Mines 396 | -10/Materials | Identified exit to Materials 697 | -10/Materials | Discovered new exit (range 17) 1225 | -10/Materials | Identified exit to Subcaves 1227 | -10/Materials | Entered Subcaves 1229 | -10/Subcaves | Reached level 2 1252 | -10/Subcaves | Shifting Twisted Machinery released Sub. Power Source 2064 | -10/Subcaves | Shifting Twisted Machinery released Barrage Gun 2065 | -10/Subcaves | Shifting Twisted Machinery released Sub. Optics 2284 | -10/Subcaves | Core integrity fell below 50% 2348 | -10/Subcaves | Core integrity fell below 20% 2483 | -10/Subcaves | Destroyed by 70-ZLV(R) with Subdweller Beam Cannon Last Messages --------------- 02124_ Dropped Protomatter-16. 02126_ Used Protomatter to restore core integrity (+48, depleted) 02179_ WA-2DR(R) affixes Scrap Shield Fragment to Scrap Shield. 02182_ Propulsion Shielding destroyed. 02195_ WA-2DR(R) destroyed. 02204_ Acquired 45 matter. 02210_ Subatomizers dissect the Disposable Heat Sink. 02270_ Triggered Piercing Trap. 02270_ Spikes shoot up from the floor. 02270_ Critical hit (Impale). 02277_ Triggered Piercing Trap. 02277_ Spikes shoot up from the floor. 02277_ Critical hit (Impale). 02283_ Triggered Piercing Trap. 02283_ Spikes shoot up from the floor. 02283_ Critical hit (Impale). 02359_ Destroyed Scrap Shield. 02359_ RS-HHG(R) destroyed. 02361_ Acquired 85 matter. 02464_ Critical hit (Meltdown: +200). Map ----- +----------------------------------------------------+ | ?????????????????????????????????????????????? | | ?????????????????????????????????????????????? | | ?????????????????????????????????????????????? | | ?????????????????????????????????????????????? | | ?????????????????????????????????????????????? | | ?????????????????????????????????????????????? | | ?????????????????????????????????????????????? | | ?????????????????????????????????????????????? | | ????????????????""???????????????????????????? | | ???????????????#""???????????????????????????? | | ???????????????#" ???????????????????????????? | | ???????????????? " ?????????????????????????? | | ??????????##????# ""?????????????????????????? | | ?????????## #?### ""#????????????????????????? | | ?????????# ## # "#????????????????????????? | | ?????????# ## " ????????????????????????? | | ?????????# # #####????????????????????? | | ????# ????# # #??####??????????????? | | ????# ???# # #?## ##?????????????? | | ????# ???#% ### #?????????????? | | ?????# #??# #?????????????? | | ????## ### % ####?????????????? | | ????# *%! ## ##????????????????? | | ????# ## ## ####?????????????????? | | ?????#### ## ###??????????????????? | | ? ??????## R@####???????????????? | | ?? ?????## ###?????????????? | | ??"" #???## #?????????????? | | ???"" #### ## ##?????????????? | | ????""" #######;##??????????????? | | ???? """ ##?????##???????????????? | | ?????##" # # ### ###??###???????????????? | | ?????##"#?## ### #### ###?????????????? | | ?????# ? ??## #?# #?????????????? | | ?????# ?"?#?# ##### #?????????????? | | ?????# # ? # ## ## ##?????????????? | | ???? ### ##&%[ ##### ##?????????????? | | ???#" # ? ## ##??# #?????????????? | | #??#""## ### ### #???## #?????????????? | | #??#"""# # ## ####?## ##?????????????? | | #??#"""## ## ### ## ### ##??????????????? | | #####"##" ## ## #???????????????? | | ""#"" "" ## ## ###???????????????? | | """"" " ### ##?????????????????? | | " ""###### #??????????????????? | | ##" " ###???# #??????????????????? | | ### "##???# ### ^ ##??????????????????? | | ??####????## ##??## ##???????????????????? | | ???????????##?????#######????????????????????? | | ?????????????????????????????????????????????? | +----------------------------------------------------+ Best States ------------- Heat Dissipation 25 Energy Generation 10 Energy Capacity 125 Matter Stores 300 Matter Capacity 300 Sight Range 18 Robot Scan Range 14 Terrain Scan Density 10 Resistance: KI 20 Resistance: TH 20 Resistance: EX 20 Resistance: EM 20 Resistance: I 20 Resistance: S 20 Resistance: P 20 Propulsion Shielding 33 Evasion (%) 40 Recoil Reduction 2 Offensive Hacking 10 Item Schematics ----------------- None Robot Schematics ------------------ None Fabricated ------------ Nothing Repaired ---------- Nothing Studied --------- None Alien Tech Used ----------------- None Achievements -------------- Spot Them First That Tickles Challenges ------------ None RPGLIKE | -11 -10 -10 --------- Run | Yrd Mat Sub Levels Raised 1 | . . 1 XP Earned 6120 | 4000 1120 1000 XP Spent 3875 | 3875 . . Upgrades 13 | 13 . . Propulsion Slot 1 | 1 . . Utility Slot 1 | 1 . . Weapon Slot 1 | 1 . . Inventory Capacity 3 | 3 . . Sensor Range 7 | 7 . . Protomatter Created 393 | . 184 209 Integrity Restored 975 | . 316 659 Core 678 | . 233 445 Parts 297 | . 83 214 Protomatter Decayed 169 | . 21 148 Game ------ Seed ModifiedPulsarCloak Manual? 0 Play Time 00:14:35 Cumulative 135.6 hours Start 2026.04.01 @ 22:05:58 End 2026.04.01 @ 22:18:45 Sessions 1 Manual Loads 0 Difficulty Adventurer Special Mode Winter2019/RPGLIKE Game No. 103 Rogue 72 Adventurer 31 Explorer 0 Win Type - Total 6 Types 3/0/2/1/0/0/0/0/0/0 Lore% 60 Gallery% 42 Achievement% 34 Wizard Run 0 Options --------- Layout 0 ASCII 0 Keyboard 0 Movement Mouse Keybinds 0 Fullscreen 1 Font 24/Smallcaps Map View 76x56 Zoom Use 0% Tactical HUD 1 Map Filters NONE Filters NONE Steam 1 RUN: 03c4f122-9656-4c5b-bab0-69a75119b630